Cogmind - Beta 15 @@@ ROGUE MODE // 2025.05.28 @ 20:22:56 Player: Polariusz Result: Destroyed by Y-72 Warden with Railgun Performance ------------- Evolutions (7) 3500 Regions Visited (14) 2800 Robots Destroyed (29) 145 Value Destroyed (1102) 1102 Prototype IDs (30) 600 Alien Tech Used (2) 400 Bonus (4604) 4604 TOTAL SCORE: 13151 Bonus ------- Triggered Max Security 1000 High Alert Combat Kills 86 Follower Combat Kills 218 Aligned with FarCom 300 Used Core Reset Matrix 3000 Cogmind --------- Core Integrity 0/1300 Matter 43/300 Energy 100/100 System Corruption 0% Temperature Cool (0) Movement Core (100) Ox1 Location -3/Quarantine Parts ------- > --- POWER (1) -------- (None) > --- PROPULSION (2) --- (None) > --- UTILITY (16) ----- Improved Targeting Computer Improved Targeting Computer > --- WEAPON (2) ------- KE Penetrator > --- INVENTORY (5) ---- Micro Antimatter Reactor Advanced Trap Scanner Advanced ECM Suite Peak State ------------ > --- POWER ------------ Light Ion Engine > --- PROPULSION ------- (None) > --- UTILITY ---------- Weight Redist. System Trap Scanner Enhanced Optical Array Targeting Computer Improved Targeting Computer Advanced Targeting Computer Hacking Suite Hacking Suite Improved Hacking Suite Improved Hacking Suite Improved Hacking Suite Improved Hacking Suite System Shield > --- WEAPON ----------- Thermic Laser Minigun > --- INVENTORY -------- Advanced Heat Sink Advanced ECM Suite Trap Reconfigurator Ion Cannon [Rating: 56] Favorites ----------- Power Light Ion Engine Engine Light Ion Engine Power Core Light Nuclear Core Propulsion None Utility Improved Hacking Suite Device Weight Redist. System Processor Targeting Computer Hackware Improved Hacking Suite Weapon Small Laser Energy Gun Small Laser Energy Cannon Cooled Particle Cannon Ballistic Gun KE Penetrator Ballistic Cannon Light Antimatter Cannon Build | -11 -10 -10 -10 -9 -8 -7 -6 -5 -5 -5 -4 -4 -3 -3 ------- Run | Yrd Mat Min Exi Min Mat Fac Fac Fac Was Fac Fac Ext Res Qua Slots Evolved 14 | . . . . . 4 2 2 2 . . 2 . 2 . Power . | . . . . . . . . . . . . . . . Propulsion . | . . . . . . . . . . . . . . . Utility 14 | . . . . . 4 2 2 2 . . 2 . 2 . Weapon . | . . . . . . . . . . . . . . . Parts Attached 47 | 2 6 2 1 2 7 3 8 3 . . 1 4 7 1 Power 2 | . . . . 1 . . . . . . . 1 . . Engine 1 | . . . . 1 . . . . . . . . . . Core 1 | . . . . . . . . . . . . 1 . . Reactor . | . . . . . . . . . . . . . . . Propulsion . | . . . . . . . . . . . . . . . Treads . | . . . . . . . . . . . . . . . Leg . | . . . . . . . . . . . . . . . Wheel . | . . . . . . . . . . . . . . . Hover . | . . . . . . . . . . . . . . . Flight . | . . . . . . . . . . . . . . . Utility 31 | . 3 1 . 1 6 2 7 3 . . 1 . 6 1 Device 11 | . 2 1 . 1 3 . . 1 . . . . 2 1 Storage . | . . . . . . . . . . . . . . . Processor 11 | . 1 . . . 3 1 3 . . . . . 3 . Hackware 9 | . . . . . . 1 4 2 . . 1 . 1 . Protection . | . . . . . . . . . . . . . . . Artifact . | . . . . . . . . . . . . . . . Weapon 14 | 2 3 1 1 . 1 1 1 . . . . 3 1 . Energy Gun 8 | 1 3 1 1 . 1 . 1 . . . . . . . Energy Cannon 1 | . . . . . . 1 . . . . . . . . Ballistic Gun 4 | 1 . . . . . . . . . . . 3 . . Ballistic Cannon 1 | . . . . . . . . . . . . . 1 . Launcher . | . . . . . . . . . . . . . . . Special Weapon . | . . . . . . . . . . . . . . . Impact Weapon . | . . . . . . . . . . . . . . . Slashing Weapon . | . . . . . . . . . . . . . . . Piercing Weapon . | . . . . . . . . . . . . . . . Special Melee Weapon . | . . . . . . . . . . . . . . . Unidentified Prototypes 4 | . . . . . . 1 . . . . . . 2 1 Parts Lost 15 | . . . . . . . . . . . . 6 1 8 Power 2 | . . . . . . . . . . . . 2 . . Propulsion . | . . . . . . . . . . . . . . . Utility 12 | . . . . . . . . . . . . 4 1 7 Weapon 1 | . . . . . . . . . . . . . . 1 Highest Loss Streak 4 | . . . . . . . . . . . . 3 1 4 To Critical Strikes 1 | . . . . . . . . . . . . . . 1 Average Backups 4 | 1 4 5 5 4 4 4 5 5 5 5 5 4 4 4 Power . | 1 1 1 1 . . . . . . . . . . 1 Propulsion . | . . . . . . . . . . . . . . . Utility 2 | . . 1 2 3 2 2 3 3 3 3 3 3 2 2 Weapon 1 | . 2 2 1 1 1 2 2 2 2 2 2 1 2 1 Tool/Special . | . . . . . . . . . . . . . . . Unused Backups 10 | 3 2 1 . . 1 . . . . . . 1 . 2 Power 3 | . 2 . . . . . . . . . . . . 1 Propulsion 2 | 2 . . . . . . . . . . . . . . Utility 3 | 1 . 1 . . . . . . . . . . . 1 Weapon 2 | . . . . . 1 . . . . . . 1 . . Tool/Special . | . . . . . . . . . . . . . . . Average Slot Usage (%) 64 | . 42 57 57 62 70 64 78 78 82 82 76 67 51 47 Engine 3 | . . . . 5 9 6 6 5 5 5 5 1 . . Device 10 | . 7 14 14 14 16 15 12 11 11 11 10 10 3 2 Processor 21 | . 7 14 14 14 26 25 26 23 23 23 21 21 24 23 Hackware 16 | . . . . . . . 24 30 35 35 34 29 19 19 Energy Gun 9 | . 26 28 28 28 18 14 6 5 5 5 5 1 . . Peak Build Rating 56 | 2 5 5 6 8 23 21 44 52 50 50 53 56 51 55 Average Rating 30 | 1 3 5 5 6 14 16 38 48 50 50 52 45 40 39 On Entrance 26 | . 2 5 5 6 8 15 20 44 50 50 50 53 32 51 Naked Turns . | . . . . . . . . . . . . . . . Heaviest Build 12 | 2 3 3 3 5 10 9 9 10 9 9 9 12 5 10 Greatest Support 9 | 3 3 3 3 9 9 9 9 9 9 9 9 9 9 3 Greatest Overweight (x) 3 | . . . . . 1 . . 1 . . . 2 1 3 Average Overweight (x) . | . . . . . . . . . . . . . . . Largest Inventory Capacity 5 | 5 5 5 5 5 5 5 5 5 5 5 5 5 5 5 Average Capacity 5 | 5 5 5 5 5 5 5 5 5 5 5 5 5 5 5 Most Carried 5 | 4 5 5 5 5 5 5 5 5 5 5 5 5 5 5 Average Carried 4 | 1 4 4 4 4 4 4 5 4 5 5 5 4 4 4 Final Capacity 5 | 5 5 5 5 5 5 5 5 5 5 5 5 5 5 5 Final Carried 5 | 2 5 5 5 5 4 5 5 5 5 5 5 5 5 3 Class Distribution -------------------- 28% | Hacker-Scout 21% | Mutant 19% | Hacker-Mutant 15% | Scout 13% | Wizard-Scout Dominant Class ---------------- Mutant | -10/Materials Mutant | -10/Mines Mutant | -10/Exiles Mutant | -9/Mines Scout | -8/Materials Scout | -7/Factory Hacker-Scout | -6/Factory Hacker-Scout | -5/Factory Wizard-Scout | -5/Waste Wizard-Scout | -5/Factory Wizard-Scout | -4/Factory Hacker-Scout | -4/Extension Hacker-Mutant | -3/Research Hacker-Mutant | -3/Quarantine Resources | -11 -10 -10 -10 -9 -8 -7 -6 -5 -5 -5 -4 -4 -3 -3 ----------- Run | Yrd Mat Min Exi Min Mat Fac Fac Fac Was Fac Fac Ext Res Qua Matter Collected 772 | 210 67 23 . 10 90 20 36 . . . . 245 71 . Remotely . | . . . . . . . . . . . . . . . Salvage Created 1197 | . 207 53 . . 149 117 281 17 . . . 198 116 59 Parts 63 | . 11 4 . . 7 8 12 2 . . . 9 5 5 Haulers Intercepted 1 | . . . . . . . 1 . . . . . . . Recyclers Shooed . | . . . . . . . . . . . . . . . Parts Field Recycled . | . . . . . . . . . . . . . . . Retrieved Matter . | . . . . . . . . . . . . . . . Parts Self-Destructed . | . . . . . . . . . . . . . . . Prevented . | . . . . . . . . . . . . . . . Kills | -11 -10 -10 -10 -9 -8 -7 -6 -5 -5 -5 -4 -4 -3 -3 ------- Run | Yrd Mat Min Exi Min Mat Fac Fac Fac Was Fac Fac Ext Res Qua Combat Hostiles Destroyed 19 | . 4 1 . . 4 2 2 . . . . 3 1 2 Guns 16 | . 4 1 . . 4 2 . . . . . 3 1 1 Cannons 1 | . . . . . . . . . . . . . . 1 AOE 2 | . . . . . . . 2 . . . . . . . Classes Destroyed 8 | . 3 1 . . 1 2 1 . . . . . . . Worker 3 | . . . . . . 1 2 . . . . . . . Hauler 1 | . . . . . . . 1 . . . . . . . Operator 2 | . 1 . . . . . . 1 . . . . . . Watcher 4 | . 1 . . . . . 1 . . . . 1 1 . Swarmer 5 | . . . . . 2 . . . . . . 1 . 2 Grunt 9 | . 4 . . . 2 1 2 . . . . . . . Sentry 3 | . . 1 . . . . . . . . . 2 . . Programmer 2 | . . . . . . 1 . . . . . . 1 . Best Kill Streak 3 | . 3 1 . . 2 2 2 1 . . . 1 1 2 Combat Bots Only 2 | . 2 1 . . 2 1 1 . . . . 1 1 2 Max Kills in Single Turn 2 | . 1 1 . . 1 1 2 1 . . . 1 1 1 Gunslinging . | . . . . . . . . . . . . . . . Exploded 1 | . . . . . . . 1 . . . . . . . Melee . | . . . . . . . . . . . . . . . Uniques/NPCs Destroyed . | . . . . . . . . . . . . . . . Combat | -11 -10 -10 -10 -9 -8 -7 -6 -5 -5 -5 -4 -4 -3 -3 -------- Run | Yrd Mat Min Exi Min Mat Fac Fac Fac Was Fac Fac Ext Res Qua Hostile Shots Fired 186 | . 13 . . . 10 7 . . . . 2 25 17 112 Missed 70 | . 1 . . . 2 2 . . . . 1 8 7 49 Hits 116 | . 12 . . . 8 5 . . . . 1 17 10 63 Projectile 116 | . 12 . . . 8 5 . . . . 1 17 10 63 Critical Strikes 2 | . . . . . . . . . . . . . 1 1 Damage Taken 2687 | . 133 . . . 126 79 . . . . 19 467 352 1511 Core 1626 | . 55 . . . 37 14 . . . . 19 268 222 1011 Absorbed by Shields . | . . . . . . . . . . . . . . . Regen/Repaired (Parts) 55 | . . . . . . 36 19 . . . . . . . Core Remaining (%) 92 | 100 . . . 78 93 98 100 . . 100 . 75 . . Volleys Fired 98 | . 15 1 . . 11 8 4 2 . . . 24 20 13 Largest 2 | . 2 2 . . 2 2 1 1 . . . 2 1 2 Hottest 110 | . 80 80 . . 103 103 85 85 . . . 110 51 84 Shots Fired 149 | . 30 2 . . 22 14 4 2 . . . 30 20 25 Gun 134 | . 30 2 . . 22 14 4 2 . . . 30 17 13 Cannon 15 | . . . . . . . . . . . . . 3 12 Launcher . | . . . . . . . . . . . . . . . Special . | . . . . . . . . . . . . . . . Kinetic 60 | . . . . . . . . . . . . 15 20 25 Thermal 89 | . 30 2 . . 22 14 4 2 . . . 15 . . Explosive . | . . . . . . . . . . . . . . . Electromagnetic . | . . . . . . . . . . . . . . . Robot Hit Streak 24 | . 11 13 . . 6 10 13 1 . . . 24 8 11 Robot Miss Streak 5 | . 2 . . . 5 1 . 1 . . . 1 3 3 Penetration Max 1 | . . . . . . . . . . . . . 1 1 Secondary Targets . | . . . . . . . . . . . . . . . Shots Hit Robots 114 | . 23 2 . . 13 13 3 1 . . . 27 13 19 Core Hits 65 | . 12 2 . . 7 7 15 1 . . . 9 4 8 Critical Kills 2 | . . . . . . . . . . . . 1 1 . Critical Parts Destroyed . | . . . . . . . . . . . . . . . Critical Strikes 5 | . . . . . . . . . . . . 2 1 2 Burn 1 | . . . . . . . . . . . . 1 . . Destroy 2 | . . . . . . . . . . . . 1 1 . Blast 2 | . . . . . . . . . . . . . . 2 Melee Attacks . | . . . . . . . . . . . . . . . Impact . | . . . . . . . . . . . . . . . Slashing . | . . . . . . . . . . . . . . . Piercing . | . . . . . . . . . . . . . . . Sneak Attacks . | . . . . . . . . . . . . . . . Combat Hostiles . | . . . . . . . . . . . . . . . Follow-up Attacks . | . . . . . . . . . . . . . . . Damage Inflicted 2909 | . 253 23 . . 192 196 694 18 . . . 542 395 596 Guns 1896 | . 253 23 . . 192 196 54 18 . . . 542 353 265 Cannons 373 | . . . . . . . . . . . . . 42 331 Explosions 640 | . . . . . . . 640 . . . . . . . Melee . | . . . . . . . . . . . . . . . Ramming . | . . . . . . . . . . . . . . . Kinetic 1299 | . . . . . . . . . . . . 308 395 596 Thermal 1465 | . 253 23 . . 192 196 549 18 . . . 234 . . Explosive . | . . . . . . . . . . . . . . . Electromagnetic 145 | . . . . . . . 145 . . . . . . . Impact . | . . . . . . . . . . . . . . . Slashing . | . . . . . . . . . . . . . . . Piercing . | . . . . . . . . . . . . . . . Highest Corruption 2 | . . . . . . 1 1 . . . . . 2 2 Average Corruption 1 | . . . . . . 1 1 . . . . . 1 2 Corruption Purged . | . . . . . . . . . . . . . . . Corruption Blocked . | . . . . . . . . . . . . . . . Effects 4 | . . . . . . 1 1 . . . . . 2 . Matter Fused 2 | . . . . . . . 1 . . . . . 1 . Heat Flow Errors 1 | . . . . . . . . . . . . . 1 . Data Loss (major) 1 | . . . . . . 1 . . . . . . . . Overload Shots . | . . . . . . . . . . . . . . . Overflow Damage 9 | . . . . . . . 9 . . . . . . . Projectiles . | . . . . . . . . . . . . . . . Explosions 9 | . . . . . . . 9 . . . . . . . Melee . | . . . . . . . . . . . . . . . Knockbacks 3 | . . . . . . . . . . . . . 1 2 Impact . | . . . . . . . . . . . . . . . Kinetic 3 | . . . . . . . . . . . . . 1 2 Secondary . | . . . . . . . . . . . . . . . Self-Inflicted Damage . | . . . . . . . . . . . . . . . Shots . | . . . . . . . . . . . . . . . Rammed . | . . . . . . . . . . . . . . . Targets Rammed . | . . . . . . . . . . . . . . . Kicked . | . . . . . . . . . . . . . . . Crushed . | . . . . . . . . . . . . . . . Highest Temperature 246 | . 85 . . . 231 60 72 14 . . . 118 246 . Average Temperature 61 | . 37 . . . 109 25 28 10 . . . 66 131 . Received Heat Transfer 363 | . 72 . . . 63 9 . . . . . 63 36 120 Siege Activations . | . . . . . . . . . . . . . . . Martial Activations . | . . . . . . . . . . . . . . . Shielding Activations . | . . . . . . . . . . . . . . . Robots Disrupted . | . . . . . . . . . . . . . . . Combat Hostiles . | . . . . . . . . . . . . . . . Robots Corrupted . | . . . . . . . . . . . . . . . Combat Hostiles . | . . . . . . . . . . . . . . . Parts Fried . | . . . . . . . . . . . . . . . Impact Corruptions . | . . . . . . . . . . . . . . . Robots Melted . | . . . . . . . . . . . . . . . Combat Hostiles . | . . . . . . . . . . . . . . . Parts Melted 5 | . 1 . . . 1 2 . . . . . 1 . . Heat Transferred 2682 | . 575 50 . . 422 385 450 50 . . . 750 . . Parts Sabotaged . | . . . . . . . . . . . . . . . Parts Stolen . | . . . . . . . . . . . . . . . Parts Stripped . | . . . . . . . . . . . . . . . Power Chain Reactions . | . . . . . . . . . . . . . . . Alert | -11 -10 -10 -10 -9 -8 -7 -6 -5 -5 -5 -4 -4 -3 -3 ------- Run | Yrd Mat Min Exi Min Mat Fac Fac Fac Was Fac Fac Ext Res Qua Maximum Alert Level 5 | . . . . . . . 1 . . . . . . 5 Low Security (%) 95 | 100 100 100 . 100 100 100 93 100 100 100 100 100 100 . Level 1 . | . . . . . . . 6 . . . . . . . Level 2 . | . . . . . . . . . . . . . . . Level 3 . | . . . . . . . . . . . . . . . Level 4 . | . . . . . . . . . . . . . . . Level 5 . | . . . . . . . . . . . . . . . High Security . | . . . . . . . . . . . . . . . Max Security 3 | . . . . . . . . . . . . . . 99 Peak Influence 1840 | . 42 40 . . 100 40 218 98 . . . 189 30 1840 Initial 98 | . . 12 . . . 2 7 98 . . . . 18 . Average 79 | . 15 7 . . 24 7 24 31 . . . 61 3 1641 Influence Increases 1448 | . 121 50 . . 178 117 282 7 . . . 302 101 290 Destroy 0b10 Robot/C 540 | . 80 20 . . 120 40 40 . . . . 180 20 40 Destroy 0b10 Robot/NC 50 | . 10 . . . . 5 20 5 . . . 5 5 . Destroy Leader 70 | . 12 . . . 10 10 4 . . . . 12 12 10 Allied During Kill 82 | . . . . . 10 . . . . . . 72 . . Successful Hack 116 | . 19 . . . 7 32 31 . . . . 12 15 . Disable Machine 150 | . . . . . . . 120 . . . . 15 . 15 Destroy Structure 50 | . . . . . 1 . 37 2 . . . 6 4 . Partial Spotted 60 | . . . . . 15 . . . . . . . 15 30 Lose Combat Pursuer 330 | . . 30 . . 15 30 30 . . . . . 30 195 Influence Decreases 1238 | . 89 82 . . 171 108 96 209 . . . 267 136 80 Entered New Map 155 | . . 20 . . . 5 9 104 . . . . 17 . Time Decay 893 | . 89 62 . . 131 103 87 105 . . . 197 119 . Lost Part 110 | . . . . . . . . . . . . 30 . 80 Lost Ally 80 | . . . . . 40 . . . . . . 40 . . Squads Dispatched 17 | . 1 . . . 1 1 4 1 . . . 1 2 6 Investigation . | . . . . . . . . . . . . . . . Extermination 6 | . . . . . . 1 3 . . . . . 2 . Reinforcement 5 | . 1 . . . 1 . 1 1 . . . 1 . . Assault 6 | . . . . . . . . . . . . . . 6 Garrison . | . . . . . . . . . . . . . . . Intercept . | . . . . . . . . . . . . . . . Searches Triggered . | . . . . . . . . . . . . . . . Construction Impeded . | . . . . . . . . . . . . . . . Haulers Reinforced 1 | . . . . . . . 1 . . . . . . . Active Scanning Responses . | . . . . . . . . . . . . . . . Cargo Convoy Interrupts . | . . . . . . . . . . . . . . . Stealth | -11 -10 -10 -10 -9 -8 -7 -6 -5 -5 -5 -4 -4 -3 -3 --------- Run | Yrd Mat Min Exi Min Mat Fac Fac Fac Was Fac Fac Ext Res Qua Distress Signals 11 | . . . . . 2 1 1 . . . . 3 2 2 Communications Jammed . | . . . . . . . . . . . . . . . Distress Signals . | . . . . . . . . . . . . . . . Times Spotted 91 | . 7 10 . . 7 4 6 4 6 . 1 15 9 22 Peak Tracking Total 20 | . 2 20 . . 2 3 4 2 6 . 1 4 3 18 Tactical Retreats 12 | . . 2 . . 1 2 2 . . . . . 2 3 Traps | -11 -10 -10 -10 -9 -8 -7 -6 -5 -5 -5 -4 -4 -3 -3 ------- Run | Yrd Mat Min Exi Min Mat Fac Fac Fac Was Fac Fac Ext Res Qua Traps Triggered 7 | . . . . . . . 1 2 . . . 2 1 1 Indirectly . | . . . . . . . . . . . . . . . Trap Hack Attempts . | . . . . . . . . . . . . . . . Triggered . | . . . . . . . . . . . . . . . Disarmed . | . . . . . . . . . . . . . . . Reprogrammed . | . . . . . . . . . . . . . . . Reused . | . . . . . . . . . . . . . . . Traps Reconfigurated 2 | . . . . . 2 . . . . . . . . . Traps Extracted . | . . . . . . . . . . . . . . . Installed . | . . . . . . . . . . . . . . . Triggered . | . . . . . . . . . . . . . . . Objects Rigged 6 | . . . . . . . 6 . . . . . . . Exploded 4 | . . . . . . . 4 . . . . . . . Machines | -11 -10 -10 -10 -9 -8 -7 -6 -5 -5 -5 -4 -4 -3 -3 ---------- Run | Yrd Mat Min Exi Min Mat Fac Fac Fac Was Fac Fac Ext Res Qua Machines Disabled 10 | . . . . . . . 8 . . . . 1 . 1 Max in Single Turn 3 | . . . . . . . 3 . . . . 1 . 1 Machines Repaired . | . . . . . . . . . . . . . . . Machines Dismantled . | . . . . . . . . . . . . . . . Machines Sabotaged . | . . . . . . . . . . . . . . . Overloaded Fab Kills . | . . . . . . . . . . . . . . . Hacking | -11 -10 -10 -10 -9 -8 -7 -6 -5 -5 -5 -4 -4 -3 -3 --------- Run | Yrd Mat Min Exi Min Mat Fac Fac Fac Was Fac Fac Ext Res Qua Machines Accessed 33 | . 2 . 1 . 2 6 10 . . 1 2 5 4 . Terminals 20 | . 2 . . . 2 2 5 . . 1 1 4 3 . Fabricators 3 | . . . . . . . 1 . . . 1 . 1 . Repair Stations 4 | . . . . . . 3 1 . . . . . . . Recycling Units 4 | . . . . . . 1 2 . . . . 1 . . Scanalyzers . | . . . . . . . . . . . . . . . Garrison Access 1 | . . . . . . . 1 . . . . . . . Total Hacks 72 | . 7 . 1 . 8 13 20 . . 3 6 6 8 . Successful 41 | . 4 . 1 . 3 5 13 . . 2 5 5 3 . Failed 31 | . 3 . . . 5 8 7 . . 1 1 1 5 . Catastrophic 5 | . 1 . . . 1 1 1 . . . . . 1 . Database Lockouts . | . . . . . . . . . . . . . . . Manual 47 | . 7 . 2 . 8 6 11 . . . 3 1 9 . Terminals 50 | . 7 . . . 8 3 12 . . 3 5 5 7 . Fabricators 4 | . . . . . . . 2 . . . 1 . 1 . Repair Stations 9 | . . . . . . 7 2 . . . . . . . Recycling Units 7 | . . . . . . 3 3 . . . . 1 . . Scanalyzers . | . . . . . . . . . . . . . . . Garrison Access 1 | . . . . . . . 1 . . . . . . . Terminal Hacks 21 | . 1 . 1 . 1 . 6 . . 2 4 4 2 . Record 2 | . . . . . . . 1 . . 1 . . . . Robot Analysis 2 | . . . . . . . 2 . . . . . . . Prototype ID Bank 1 | . . . . . . . . . . 1 . . . . Open Door 3 | . . . . . . . . . . . . 3 . . Open DSF 1 | . . . . . . . 1 . . . . . . . Level Access Points 2 | . . . . . . . 1 . . . 1 . . . Branch Access Points 5 | . 1 . . . 1 . 1 . . . 1 . 1 . Terminal Index 1 | . . . . . . . . . . . 1 . . . Alert Level 1 | . . . . . . . . . . . 1 . . . Locate Traps 1 | . . . . . . . . . . . . 1 . . Recall Extermination 1 | . . . . . . . . . . . . . 1 . Proto ID Catalog 1 | . . . 1 . . . . . . . . . . . Fabricator Hacks 3 | . . . . . . . 1 . . . 1 . 1 . Build 3 | . . . . . . . 1 . . . 1 . 1 . Repair Station Hacks 5 | . . . . . . 3 2 . . . . . . . Scan Component 2 | . . . . . . 1 1 . . . . . . . Repair 2 | . . . . . . 1 1 . . . . . . . Refit 1 | . . . . . . 1 . . . . . . . . Recycling Unit Hacks . | . . . . . . . . . . . . . . . Scanalyzer . | . . . . . . . . . . . . . . . Garrison Access Hacks 1 | . . . . . . . 1 . . . . . . . Unlock Access 1 | . . . . . . . 1 . . . . . . . Unauthorized Hacks 8 | . 3 . . . 2 1 2 . . . . . . . Terminals 8 | . 3 . . . 2 1 2 . . . . . . . Track 1 | . 1 . . . . . . . . . . . . . Botnet 6 | . 2 . . . 2 1 1 . . . . . . . Detonate 1 | . . . . . . . 1 . . . . . . . Fabricators . | . . . . . . . . . . . . . . . Repair Stations . | . . . . . . . . . . . . . . . Recycling Units . | . . . . . . . . . . . . . . . Scanalyzers . | . . . . . . . . . . . . . . . Garrison Access . | . . . . . . . . . . . . . . . Data Cores Recovered . | . . . . . . . . . . . . . . . Used . | . . . . . . . . . . . . . . . Hacking Detections 21 | . 2 . . . 2 4 8 . . 1 . 1 3 . Full Trace Events . | . . . . . . . . . . . . . . . Feedback Events . | . . . . . . . . . . . . . . . Feedback Blocked . | . . . . . . . . . . . . . . . Robot Schematics Acquired . | . . . . . . . . . . . . . . . Robots Built 1 | . . . . . . . 1 . . . . . . . Authchips . | . . . . . . . . . . . . . . . Time 50 | . . . . . . . 50 . . . . . . . Total Robot Build Rating 5 | . . . . . . . 5 . . . . . . . Part Schematics Acquired . | . . . . . . . . . . . . . . . Parts Built 2 | . . . . . . . . . . . 1 . 1 . Authchips . | . . . . . . . . . . . . . . . Time 208 | . . . . . . . . . . . 69 . 139 . Total Part Build Rating 18 | . . . . . . . . . . . 9 . 9 . Parts Repaired 2 | . . . . . . 1 1 . . . . . . . Time 36 | . . . . . . 26 10 . . . . . . . Parts Recycled . | . . . . . . . . . . . . . . . Recycled Matter . | . . . . . . . . . . . . . . . Retrieved Matter . | . . . . . . . . . . . . . . . Retrieved Components . | . . . . . . . . . . . . . . . Parts Scanalyzed . | . . . . . . . . . . . . . . . Part Schematics Acquired . | . . . . . . . . . . . . . . . Parts Damaged . | . . . . . . . . . . . . . . . Bothacking | -11 -10 -10 -10 -9 -8 -7 -6 -5 -5 -5 -4 -4 -3 -3 ------------ Run | Yrd Mat Min Exi Min Mat Fac Fac Fac Was Fac Fac Ext Res Qua Used RIF Installer . | . . . . . . . . . . . . . . . Robots Hacked . | . . . . . . . . . . . . . . . Non-combat . | . . . . . . . . . . . . . . . Combat . | . . . . . . . . . . . . . . . Robot Hacks Applied . | . . . . . . . . . . . . . . . Relay Couplers Released . | . . . . . . . . . . . . . . . Fabnet Peak Effective % . | . . . . . . . . . . . . . . . Robots Rewired 8 | . . . . . . . . . . . . 8 . . Allies Hacked . | . . . . . . . . . . . . . . . Hacks Repelled . | . . . . . . . . . . . . . . . Allies | -11 -10 -10 -10 -9 -8 -7 -6 -5 -5 -5 -4 -4 -3 -3 -------- Run | Yrd Mat Min Exi Min Mat Fac Fac Fac Was Fac Fac Ext Res Qua Total Allies 15 | . . 1 . 2 . . 1 . . . . 11 . . Largest Group 8 | . . 1 1 2 2 . 1 . . . . 8 . . Highest-Rated Group 331 | . . 31 31 54 54 . 23 . . . . 331 . . Highest-Rated Ally 51 | . . 31 31 31 31 . 23 . . . . 51 . . Total Orders 2 | . . . . . . . . . . . . 2 . . STAY 1 | . . . . . . . . . . . . 1 . . FOLLOW 1 | . . . . . . . . . . . . 1 . . Ally Attacks 55 | . . . . . 8 . . . . . . 47 . . Total Damage 1271 | . . . . . 146 . . . . . . 1125 . . Kills 8 | . . . . . 2 . . . . . . 6 . . Allies Corrupted . | . . . . . . . . . . . . . . . Allies Melted . | . . . . . . . . . . . . . . . Intel | -11 -10 -10 -10 -9 -8 -7 -6 -5 -5 -5 -4 -4 -3 -3 ------- Run | Yrd Mat Min Exi Min Mat Fac Fac Fac Was Fac Fac Ext Res Qua Active Infowar (turns) 5248 | . 118 319 279 175 458 553 634 348 59 74 168 910 1024 129 Optics 5243 | . 117 319 279 175 458 553 630 348 59 74 168 910 1024 129 Traps 2835 | . . . . . 358 553 634 348 59 74 168 383 194 64 Cloaking 12 | . . . . . . . . . . . . . . 12 ECM 1 | . 1 . . . . . . . . . . . . . Robot Analysis Total 2 | . . . . . . . 2 . . . . . . . Derelict Logs Recovered 6 | . . 3 . 3 . . . . . . . . . . Drone Launches . | . . . . . . . . . . . . . . . Drone Recoveries . | . . . . . . . . . . . . . . . Exploration | -11 -10 -10 -10 -9 -8 -7 -6 -5 -5 -5 -4 -4 -3 -3 ------------- Run | Yrd Mat Min Exi Min Mat Fac Fac Fac Was Fac Fac Ext Res Qua Turns Passed 5453 | 49 217 319 279 175 458 553 634 348 59 74 168 910 1024 186 Spaces Moved 6872 | 77 224 515 485 284 320 786 1002 470 113 147 310 920 978 241 Core 6872 | 77 224 515 485 284 320 786 1002 470 113 147 310 920 978 241 Treads . | . . . . . . . . . . . . . . . Legs . | . . . . . . . . . . . . . . . Wheels . | . . . . . . . . . . . . . . . Hover . | . . . . . . . . . . . . . . . Flight . | . . . . . . . . . . . . . . . Fastest Speed 50 | 50 50 50 50 50 50 50 50 50 50 50 50 50 50 50 Average Speed 51 | 50 50 50 50 50 55 50 50 50 50 50 50 56 50 51 Slowest Speed 200 | 50 50 50 50 50 100 50 50 100 50 50 50 150 100 200 Overloaded Moves . | . . . . . . . . . . . . . . . Propulsion Burnouts . | . . . . . . . . . . . . . . . Robots Hopped . | . . . . . . . . . . . . . . . Potential Cave-ins . | . . . . . . . . . . . . . . . Cave-ins Triggered . | . . . . . . . . . . . . . . . Teleports 1 | . . . . . . . . . . . . . . 1 Exploration Rate (%) 39 | 3 48 82 90 60 32 23 31 10 84 5 15 47 21 45 Regions Visited 14 Branch Regions 5 Pre-discovered Areas 4 | . . 3 . 1 . . . . . . . . . . Known Exits Taken 5 | . 1 . . . . . 1 . . . 1 1 1 . Unknown Exits Taken 7 | 1 . 1 1 1 1 1 . . . 1 . . . . Scrap Searched 4 | . . 2 . 2 . . . . . . . . . . Spaces Dug . | . . . . . . . . . . . . . . . Terrain Destroyed 43 | . . . . . . . 39 . . . . 2 2 . Melee . | . . . . . . . . . . . . . . . Projectile 4 | . . . . . . . . . . . . 2 2 . AOE 39 | . . . . . . . 39 . . . . . . . Terrain Rammed . | . . . . . . . . . . . . . . . Walls Destroyed . | . . . . . . . . . . . . . . . Machines Disabled . | . . . . . . . . . . . . . . . Actions | -11 -10 -10 -10 -9 -8 -7 -6 -5 -5 -5 -4 -4 -3 -3 --------- Run | Yrd Mat Min Exi Min Mat Fac Fac Fac Was Fac Fac Ext Res Qua Total 8642 | 88 300 574 521 316 579 930 1128 577 114 146 321 1284 1486 278 Wait 1508 | . 40 52 34 29 233 127 108 99 2 . 11 282 473 18 Move 6859 | 76 223 514 484 283 319 785 1001 470 112 146 309 919 977 241 Hop . | . . . . . . . . . . . . . . . Pick Up 29 | 7 10 2 1 1 4 1 . . . . . 1 2 . Fast Attach 33 | . 1 . . 1 1 5 9 4 . . 1 2 7 2 Attach 22 | 2 5 . 1 1 5 . . . . . . 4 1 3 Detach 9 | . . . . . 1 . . 1 . . . 5 1 1 Swap 4 | . . 2 . . 1 . . . . . . . 1 . Drop 36 | 3 6 3 1 1 4 4 6 1 . . . 3 4 . Fire 98 | . 15 1 . . 11 8 4 2 . . . 24 20 13 Melee . | . . . . . . . . . . . . . . . Ram . | . . . . . . . . . . . . . . . Kick . | . . . . . . . . . . . . . . . Crush . | . . . . . . . . . . . . . . . Escape Stasis 30 | . . . . . . . . . . . . 30 . . Rewire 14 | . . . . . . . . . . . . 14 . . Trap . | . . . . . . . . . . . . . . . Miscellaneous . | . . . . . . . . . . . . . . . Route ------- -11/Scrapyard -10/Materials (discovered 3 exits: [*Mat] / *Min x2) -10/Mines (discovered 3 exits: [*Mat x2] / *Exi) -10/Exiles -9/Mines -8/Materials -7/Factory -6/Factory (discovered 7 exits: *Fac x4 / Low x2 / Gar) -5/Factory -5/Waste -5/Factory -4/Factory (discovered 9 exits: Res x4 / Upp x2 / *Ext x2 / Arm) -4/Extension -3/Research (discovered 2 exits: *Qua x2) -3/Quarantine History --------- Turn | Location | Event 17 | -11/Scrapyard | Discovered new exit (range 15) 50 | -11/Scrapyard | Entered Materials 73 | -10/Materials | Identified exit to Mines 201 | -10/Materials | Discovered new exit (range 13) 267 | -10/Materials | Entered Mines 286 | -10/Mines | Learned location of Zion (-7) 291 | -10/Mines | Discovered new exit (range 9) 299 | -10/Mines | Received a Rocket Launcher from a helpful Derelict 307 | -10/Mines | Build established: Mutant 376 | -10/Mines | Assembled infested the area 422 | -10/Mines | Joined a pair of Derelicts in attacking an 0b10 outpost 456 | -10/Mines | Met 8R-AWN 478 | -10/Mines | Learned location of Mines (-9) 495 | -10/Mines | Discovered new exit (range 5) 498 | -10/Mines | Received a Mining Laser from a helpful Derelict 540 | -10/Mines | Discovered new exit (range 5) 586 | -10/Mines | Entered Exiles 586 | -10/Exiles | Accompanied by 1 ally 599 | -10/Exiles | Welcomed by 8R-AWN 608 | -10/Exiles | Met EX-HEX 644 | -10/Exiles | Met EX-DEC 662 | -10/Exiles | Met EX-BIN 696 | -10/Exiles | Aligned with FarCom system 696 | -10/Exiles | Given EX-Vault access code 708 | -10/Exiles | Opened EX-Vault 712 | -10/Exiles | Found Prototype Device 713 | -10/Exiles | Identified Trap Reconfigurator 724 | -10/Exiles | Warned to stay clear of 0b10 Research branches 757 | -10/Exiles | Visited The Gauntlet 825 | -10/Exiles | Discovered new exit (range 15) 865 | -10/Exiles | Left Exiles lab with Trap Reconfigurator 865 | -10/Exiles | Entered Mines 865 | -9/Mines | Accompanied by 1 ally 924 | -9/Mines | Learned Materials emergency access door positions 941 | -9/Mines | Learned Materials stockpile data 955 | -9/Mines | Learned location of Storage (-9) 983 | -9/Mines | Discovered new exit (range 14) 986 | -9/Mines | Learned 2 Materials zone layouts 1040 | -9/Mines | Entered Materials 1040 | -8/Materials | Accompanied by 2 allies 1040 | -8/Materials | Evolved 4 slots: Utility x4 1045 | -8/Materials | Led the pair of lost Derelicts to an unsafe place 1491 | -8/Materials | Discovered new exit (range 10) 1498 | -8/Materials | Entered Factory 1498 | -7/Factory | Evolved 2 slots: Utility x2 1511 | -7/Factory | Build established: Scout 1576 | -7/Factory | Repaired Lgt. Ion Engine 2008 | -7/Factory | Discovered new exit (range 5) 2051 | -7/Factory | Entered another Factory area 2051 | -6/Factory | Evolved 2 slots: Utility x2 2067 | -6/Factory | Identified exit to Garrison 2204 | -6/Factory | Fabricated A-15 Conveyor (x1) 2281 | -6/Factory | Repaired Weight Redist. System 2307 | -6/Factory | Identified exit to DSF 2378 | -6/Factory | Build established: Hacker-Scout 2413 | -6/Factory | Identified exit to Lower Caves 2413 | -6/Factory | Identified exit to Factory 2432 | -6/Factory | Spotted B-75 Beast 2685 | -6/Factory | Entered another Factory area 2685 | -5/Factory | Evolved 2 slots: Utility x2 3033 | -5/Factory | Sucked down chute 3033 | -5/Factory | Entered Waste 3038 | -5/Waste | Spotted C-40 Crusher 3042 | -5/Waste | Spotted C-40 Crusher 3046 | -5/Waste | Spotted C-40 Crusher 3059 | -5/Waste | Spotted C-40 Crusher 3063 | -5/Waste | Spotted C-40 Crusher 3067 | -5/Waste | Spotted C-40 Crusher 3079 | -5/Waste | Discovered new exit (range 12) 3092 | -5/Waste | Entered Factory 3092 | -5/Factory | Discovered new exit (range 9) 3166 | -5/Factory | Entered another Factory area 3166 | -4/Factory | Evolved 2 slots: Utility x2 3180 | -4/Factory | Build established: Wizard-Scout 3272 | -4/Factory | Identified exit to Upper Caves 3272 | -4/Factory | Identified exit to Extension 3272 | -4/Factory | Identified exit to Armory 3272 | -4/Factory | Identified exit to Research 3308 | -4/Factory | Fabricated Adv. Heavy Siege Treads? 3334 | -4/Factory | Entered Extension 3382 | -4/Extension | Rescued a captive Derelict 3388 | -4/Extension | Rescued a captive Derelict 3389 | -4/Extension | Rescued a captive Derelict 3459 | -4/Extension | Spotted B-86 Titan 3643 | -4/Extension | Lost 3 parts (1p2u) 4214 | -4/Extension | Build established: Hacker-Scout 4235 | -4/Extension | Spotted B-86 Titan 4243 | -4/Extension | Discovered exit to Research (range 3) 4244 | -4/Extension | Entered Research 4244 | -3/Research | Evolved 2 slots: Utility x2 4274 | -3/Research | Lost 3 parts (1p2u) 4418 | -3/Research | Fabricated Adv. Heavy Siege Treads? 4533 | -3/Research | Build established: Hacker-Mutant 4736 | -3/Research | Identified exit to Quarantine 5240 | -3/Research | Spotted B-86 Titan 5261 | -3/Research | Spotted B-90 Cyclops 5268 | -3/Research | Entered Quarantine 5269 | -3/Quarantine | Maximum security lockdown engaged 5272 | -3/Quarantine | Found Alien Artifact 5272 | -3/Quarantine | Identified Core Reset Matrix 5272 | -3/Quarantine | Used Core Reset Matrix 5276 | -3/Quarantine | Detected hypermatrix surge 5276 | -3/Quarantine | Sensed 12 artifacts in vicinity 5283 | -3/Quarantine | Found Transdimensional Reconstructor 5283 | -3/Quarantine | Warped through subspace 5369 | -3/Quarantine | Core integrity fell below 50% 5397 | -3/Quarantine | Lost 4 parts (4u) 5433 | -3/Quarantine | Core integrity fell below 20% 5450 | -3/Quarantine | Spotted Alpha 7 5454 | -3/Quarantine | Destroyed by Y-72 Warden with Railgun Last Messages --------------- 05439_ Slug penetrates Wall. 05442_ Penetrated by Slug. 05442_ Slug penetrates Sealed Heavy Doors. 05442_ Imp. Hacking Suite destroyed. 05443_ Slug penetrates Y-72 Warden. 05443_ Y-72 Warden Unknown Treads blasted off. 05445_ Penetrated by Slug. 05445_ Slug penetrates Sealed Heavy Doors. 05445_ Penetrated by Slug. 05445_ Slug penetrates Sealed Heavy Doors. 05446_ Y-72 Warden Unknown Treads blasted off. 05446_ Y-72 Warden knocked back. 05448_ Penetrated by Slug. 05449_ Slug penetrates Y-72 Warden. 05449_ Y-72 Warden knocked back. 05451_ Penetrated by Slug. 05451_ Critical hit (Destroy). 05451_ Lgt. Antimatter Cannon destroyed. 05451_ Hacking Suite destroyed. 05451_ Slug penetrates Sealed Heavy Doors. Map ----- +----------------------------------------------------+ | | | | | | | | | | | | | | | | | | | | | ?????????????????????????????????? | | ?????????????????????????????????? | | ?????????????????????????????????? | | ?????????????????????????????????? | | ?????????????????????????????????? | | ?????????????????????????????????? | | ?????????????????????????????????? | | ?????????????????????????????????? | | ?????????????????????????????????? | | ?????????????????????????????????? | | ?????????????????????????????????? | | ?????????????????????????????????? | | ?????????????????????????????????? | | ?????????????????????????????????? | | ?????##"""#??????????????????????? | | ?????#T @#??????????????????????? | | ?###?## #??????????????????????? | | # ?# #??????????????????????? | | # """?# =[#??????????????????????? | | # """ #YY%########???????????????? | | # """ # =% ! #???????????????? | | # + Y% ###?????????????? | | # """ #% * !==""#?????????????? | | # """ # 7%[ != ""#?????????????? | | # """?# "=! != T"#?????????????? | | # ?# T ""#?????????????? | | ? ??# "" ""#?????????????? | | # ??#* "" ! ###?????????????? | | # ???# #???????????????? | | ###???# w #???????????????? | | ????####+##### #???????????????? | | ????# ??# #???????????????? | | ????# # #?????###+###???? | | ????# """"" + ####### ###+# | | ????# """"" # T" | | ????# "!" # " | | ????# """ + [ ! | | ????# ##"####+### ] ##### | | ????# ?# ? ?## ##???? | | ????# ??# """"??# #????# | +----------------------------------------------------+ Best States ------------- Heat Dissipation 59 Energy Generation 14 Energy Capacity 160 Matter Stores 300 Matter Capacity 300 Sight Range 22 Terrain Scan Density 10 Cloak Strength 2 Additional Mass Support 6 Evasion (%) 50 Targeting Accuracy 31 Target Analysis 8 Offensive Hacking 68 Defensive Hacking 20 Item Schematics ----------------- None Robot Schematics ------------------ None Fabricated ------------ A-15 Conveyor | x1 | -6/Factory | Preloaded Adv. Heavy Siege Treads | x1 | -4/Factory | Preloaded Adv. Heavy Siege Treads | x1 | -3/Research | Preloaded Repaired ---------- Lgt. Ion Engine | 10% | -7/Factory Weight Redist. System | 13% | -6/Factory Alien Tech Used ----------------- Core Reset Matrix Transdimensional Reconstructor Achievements -------------- Alien Roots Subspace Traveler Challenges ------------ None Game ------ Seed SurgeAlertBarrier Manual? 0 Play Time 01:17:34 Cumulative 51.0 hours Start 2025.05.28 @ 19:05:45 End 2025.05.28 @ 20:22:56 Sessions 1 Manual Loads 0 Difficulty Rogue Special Mode None Game No. 53 Rogue 53 Adventurer 0 Explorer 0 Win Type - Total 1 Types 1/0/0/0/0/0/0/0/0/0 Lore% 33 Gallery% 31 Achievement% 31 Wizard Run 0 Options --------- Layout 1 ASCII 0 Keyboard 0 Movement Mouse Keybinds 0 Fullscreen 1 Font 24/Smallcaps Map View 50x35 Zoom Use 0% Tactical HUD 1 Map Filters NONE Filters NONE Steam 1 RUN: 0ad28f44-e4b2-46d4-b827-53641f74d98a